[Event "13 Open de Quenza"]
[Site "Quenza, France"]
[Date "2024.07.07"]
[Round "6.1"]
[White "Lagarde, Maxime"]
[Black "Anand, Viswanathan"]
[Result "0-1"]
[TimeControl "5min+3s/move"]
[WhiteElo "2608"]
[BlackElo "2751"]

1. e4 {[%clk 00:05:03]} {[%emt 00:12:38]} e5 {[%clk 00:05:03]} {[%emt
00:00:02]} 2. Nc3 {[%clk 00:05:03]} Nf6 {[%clk 00:05:03]} {[%emt 00:00:02]} 3.
f4 {[%clk 00:05:03]} d5 {[%clk 00:05:03]} {[%emt 00:00:03]} 4. fxe5 {[%clk
00:05:03]} {[%emt 00:00:01]} Nxe4 {[%clk 00:05:03]} 5. Qf3 {[%clk 00:05:03]}
{[%emt 00:00:01]} Nxc3 {[%clk 00:05:03]} {[%emt 00:00:03]} 6. dxc3 {[%clk
00:05:03]} {[%emt 00:00:01]} Be7 {[%clk 00:05:03]} {[%emt 00:00:04]} 7. Bf4
{[%clk 00:05:02]} {[%emt 00:00:04]} c6 {[%clk 00:05:00]} {[%emt 00:00:06]} 8.
Bd3 {[%clk 00:04:59]} {[%emt 00:00:06]} O-O {[%clk 00:04:57]} {[%emt 00:00:06]}
9. O-O-O {[%clk 00:04:47]} {[%emt 00:00:14]} Nd7 {[%clk 00:04:57]} {[%emt
00:00:02]} 10. Qh5 {[%clk 00:04:38]} {[%emt 00:00:12]} g6 {[%clk 00:04:51]}
{[%emt 00:00:09]} 11. Qh6 {[%clk 00:04:14]} {[%emt 00:00:27]} Nxe5 {[%clk
00:04:51]} {[%emt 00:00:03]} 12. Be2 {[%clk 00:03:55]} {[%emt 00:00:22]} Re8
{[%clk 00:04:49]} {[%emt 00:00:05]} 13. Bd2 {[%clk 00:03:42]} {[%emt 00:00:16]}
Bf5 {[%clk 00:04:21]} {[%emt 00:00:31]} 14. h4 {[%clk 00:03:36]} {[%emt
00:00:09]} Qa5 {[%clk 00:04:18]} {[%emt 00:00:06]} 15. Kb1 {[%clk 00:03:32]}
{[%emt 00:00:07]} Qa4 {[%clk 00:04:18]} {[%emt 00:00:02]} 16. b3 {[%clk
00:03:32]} {[%emt 00:00:02]} Bxc2+ {[%clk 00:04:18]} {[%emt 00:00:03]} 0-1

[Event "13 Open de Quenza"]
[Site "Quenza, France"]
[Date "2024.07.07"]
[Round "6.2"]
[White "Fressinet, Laurent"]
[Black "Bellahcene, Bilel"]
[Result "1/2-1/2"]
[TimeControl "5min+3s/move"]
[WhiteElo "2625"]
[BlackElo "2535"]

1. d4 {[%clk 00:05:03]} {[%emt 00:00:10]} Nf6 {[%clk 00:05:03]} 2. Nf3 {[%clk
00:05:03]} c5 {[%clk 00:05:03]} 3. d5 {[%clk 00:05:03]} {[%emt 00:00:01]} b5
{[%clk 00:05:03]} 4. c3 {[%clk 00:05:03]} g6 {[%clk 00:04:54]} {[%emt
00:00:13]} 5. e4 {[%clk 00:05:03]} {[%emt 00:00:03]} Nxe4 {[%clk 00:04:47]}
{[%emt 00:00:10]} 6. Bxb5 {[%clk 00:05:03]} {[%emt 00:00:01]} Bg7 {[%clk
00:04:45]} {[%emt 00:00:06]} 7. O-O {[%clk 00:05:03]} {[%emt 00:00:02]} O-O
{[%clk 00:04:45]} {[%emt 00:00:02]} 8. Re1 {[%clk 00:05:03]} {[%emt 00:00:02]}
Nf6 {[%clk 00:04:25]} {[%emt 00:00:24]} 9. c4 {[%clk 00:04:34]} {[%emt
00:00:32]} d6 {[%clk 00:04:25]} {[%emt 00:00:03]} 10. h3 {[%clk 00:04:32]}
{[%emt 00:00:05]} a6 {[%clk 00:04:22]} {[%emt 00:00:06]} 11. Ba4 {[%clk
00:04:32]} {[%emt 00:00:02]} e5 {[%clk 00:04:10]} {[%emt 00:00:16]} 12. dxe6
{[%clk 00:04:20]} {[%emt 00:00:15]} Bxe6 {[%clk 00:04:10]} {[%emt 00:00:01]} 13.
Bf4 {[%clk 00:03:56]} {[%emt 00:00:26]} d5 {[%clk 00:02:39]} {[%emt 00:01:35]}
14. cxd5 {[%clk 00:03:51]} {[%emt 00:00:08]} Nxd5 {[%clk 00:02:01]} {[%emt
00:00:40]} 15. Be5 {[%clk 00:03:51]} Nb4 {[%clk 00:02:01]} {[%emt 00:00:02]} 16.
Bxg7 {[%clk 00:03:31]} {[%emt 00:00:23]} Kxg7 {[%clk 00:01:51]} {[%emt
00:00:13]} 17. Nc3 {[%clk 00:03:31]} {[%emt 00:00:02]} Nd3 {[%clk 00:01:45]}
{[%emt 00:00:09]} 18. Re2 {[%clk 00:03:31]} {[%emt 00:00:03]} c4 {[%clk
00:01:35]} {[%emt 00:00:13]} 19. Bc2 {[%clk 00:02:16]} {[%emt 00:01:17]} Nc6
{[%clk 00:01:30]} {[%emt 00:00:07]} 20. Bxd3 {[%clk 00:02:16]} {[%emt
00:00:02]} Qxd3 {[%clk 00:01:09]} {[%emt 00:00:24]} 21. Qe1 {[%clk 00:01:56]}
{[%emt 00:00:22]} Rad8 {[%clk 00:00:54]} {[%emt 00:00:18]} 22. Ne4 {[%clk
00:01:45]} {[%emt 00:00:14]} Bf5 {[%clk 00:00:40]} {[%emt 00:00:18]} 23. Ng3
{[%clk 00:01:18]} {[%emt 00:00:30]} Qd5 {[%clk 00:00:17]} {[%emt 00:00:27]} 24.
Qc3+ {[%clk 00:01:11]} {[%emt 00:00:09]} Kg8 {[%clk 00:00:16]} {[%emt
00:00:04]} 25. Re3 {[%clk 00:00:38]} {[%emt 00:00:36]} Bd3 {[%clk 00:00:16]}
{[%emt 00:00:01]} 26. Rd1 {[%clk 00:00:38]} Nd4 {[%clk 00:00:13]} {[%emt
00:00:06]} 27. Nxd4 {[%clk 00:00:31]} {[%emt 00:00:11]} Qxd4 {[%clk 00:00:13]}
28. Ne4 {[%clk 00:00:15]} {[%emt 00:00:18]} Qxc3 {[%clk 00:00:13]} 29. Nxc3
{[%clk 00:00:15]} {[%emt 00:00:02]} Rd7 {[%clk 00:00:11]} {[%emt 00:00:05]} 30.
b4 {[%clk 00:00:11]} {[%emt 00:00:08]} Kg7 {[%clk 00:00:11]} {[%emt 00:00:02]}
31. a4 {[%clk 00:00:11]} {[%emt 00:00:03]} Rb8 {[%clk 00:00:11]} 32. b5 {[%clk
00:00:11]} {[%emt 00:00:01]} axb5 {[%clk 00:00:11]} 33. axb5 Ra7 34. Rc1 {[%clk
00:00:09]} {[%emt 00:00:04]} Ra3 {[%clk 00:00:10]} {[%emt 00:00:04]} 35. Re5
{[%clk 00:00:09]} {[%emt 00:00:02]} Rb7 {[%clk 00:00:10]} {[%emt 00:00:01]} 36.
Rc5 {[%clk 00:00:07]} {[%emt 00:00:05]} Rb3 {[%clk 00:00:10]} 37. Rd5 {[%clk
00:00:07]} {[%emt 00:00:02]} Ra3 {[%clk 00:00:09]} {[%emt 00:00:04]} 38. Re5
{[%clk 00:00:07]} Rb3 {[%clk 00:00:09]} 39. Rd5 {[%clk 00:00:07]} Ra3 {[%clk
00:00:09]} 40. Re5 {[%clk 00:00:07]} 1/2-1/2

[Event "13 Open de Quenza"]
[Site "Quenza, France"]
[Date "2024.07.07"]
[Round "6.3"]
[White "Batsiashvili, Nino"]
[Black "Fedorchuk, Sergey A."]
[Result "1/2-1/2"]
[TimeControl "5min+3s/move"]
[WhiteElo "2451"]
[BlackElo "2554"]

1. d4 {[%clk 00:05:03]} Nf6 {[%clk 00:05:03]} {[%emt 00:00:02]} 2. c4 {[%clk
00:05:03]} {[%emt 00:00:02]} e6 {[%clk 00:05:03]} {[%emt 00:00:01]} 3. Nc3
{[%clk 00:05:01]} {[%emt 00:00:06]} Bb4 {[%clk 00:05:03]} {[%emt 00:00:01]} 4.
Nf3 {[%clk 00:05:01]} {[%emt 00:00:02]} b6 {[%clk 00:05:03]} {[%emt 00:00:02]}
5. e3 {[%clk 00:05:01]} {[%emt 00:00:02]} Bb7 {[%clk 00:05:01]} {[%emt
00:00:05]} 6. Bd3 {[%clk 00:05:01]} {[%emt 00:00:02]} c5 {[%clk 00:04:46]}
{[%emt 00:00:17]} 7. O-O {[%clk 00:05:00]} {[%emt 00:00:05]} O-O {[%clk
00:04:46]} {[%emt 00:00:03]} 8. Bd2 {[%clk 00:04:54]} {[%emt 00:00:09]} Bxc3
{[%clk 00:04:17]} {[%emt 00:00:31]} 9. Bxc3 {[%clk 00:04:54]} {[%emt 00:00:03]}
Ne4 {[%clk 00:04:17]} {[%emt 00:00:03]} 10. Bxe4 {[%clk 00:04:11]} {[%emt
00:00:46]} Bxe4 {[%clk 00:04:17]} {[%emt 00:00:02]} 11. Nd2 {[%clk 00:03:42]}
{[%emt 00:00:33]} Bb7 {[%clk 00:04:06]} {[%emt 00:00:14]} 12. dxc5 {[%clk
00:03:09]} {[%emt 00:00:37]} bxc5 {[%clk 00:04:06]} {[%emt 00:00:01]} 13. Qg4
{[%clk 00:03:09]} {[%emt 00:00:01]} f6 {[%clk 00:03:58]} {[%emt 00:00:11]} 14.
Rad1 {[%clk 00:03:09]} {[%emt 00:00:02]} Qc7 {[%clk 00:03:43]} {[%emt
00:00:18]} 15. Ne4 {[%clk 00:02:48]} {[%emt 00:00:21]} Bxe4 {[%clk 00:03:31]}
{[%emt 00:00:15]} 16. Qxe4 {[%clk 00:02:50]} {[%emt 00:00:01]} Nc6 {[%clk
00:03:31]} {[%emt 00:00:01]} 17. Rd2 {[%clk 00:02:50]} {[%emt 00:00:03]} Rf7
{[%clk 00:02:51]} {[%emt 00:00:43]} 18. Rfd1 {[%clk 00:02:50]} {[%emt
00:00:03]} Re8 {[%clk 00:02:51]} {[%emt 00:00:01]} 19. h4 {[%clk 00:02:50]}
{[%emt 00:00:03]} a5 {[%clk 00:02:42]} {[%emt 00:00:12]} 20. h5 {[%clk
00:02:49]} {[%emt 00:00:04]} h6 {[%clk 00:02:36]} {[%emt 00:00:08]} 21. Qg4
{[%clk 00:02:37]} {[%emt 00:00:13]} Ree7 {[%clk 00:02:08]} {[%emt 00:00:32]} 22.
b3 {[%clk 00:02:26]} {[%emt 00:00:14]} e5 {[%clk 00:01:11]} {[%emt 00:01:00]}
23. Qf5 {[%clk 00:02:22]} {[%emt 00:00:07]} Nd8 {[%clk 00:00:37]} {[%emt
00:00:36]} 24. Qe4 {[%clk 00:02:17]} {[%emt 00:00:08]} Qc6 {[%clk 00:00:31]}
{[%emt 00:00:10]} 25. Qd5 {[%clk 00:02:14]} {[%emt 00:00:06]} Qxd5 {[%clk
00:00:31]} {[%emt 00:00:03]} 26. Rxd5 {[%clk 00:02:14]} {[%emt 00:00:02]} Nb7
{[%clk 00:00:31]} 27. a3 {[%clk 00:02:03]} {[%emt 00:00:14]} d6 {[%clk
00:00:31]} 28. b4 {[%clk 00:02:03]} axb4 {[%clk 00:00:31]} {[%emt 00:00:01]} 29.
axb4 {[%clk 00:02:03]} cxb4 30. Bxb4 {[%clk 00:02:03]} Rc7 {[%clk 00:00:31]}
{[%emt 00:00:01]} 31. Bxd6 {[%clk 00:02:01]} {[%emt 00:00:05]} Nxd6 {[%clk
00:00:26]} {[%emt 00:00:09]} 32. Rxd6 {[%clk 00:02:01]} {[%emt 00:00:01]} Rxc4
{[%clk 00:00:26]} {[%emt 00:00:01]} 33. Rd8+ {[%clk 00:02:01]} {[%emt
00:00:02]} Rf8 {[%clk 00:00:24]} {[%emt 00:00:04]} 34. Rxf8+ {[%clk 00:01:41]}
{[%emt 00:00:23]} Kxf8 {[%clk 00:00:24]} 35. g3 {[%clk 00:01:41]} {[%emt
00:00:01]} Rc7 {[%clk 00:00:18]} {[%emt 00:00:10]} 36. Kg2 {[%clk 00:01:41]}
{[%emt 00:00:01]} Kf7 {[%clk 00:00:18]} 37. Rd2 {[%clk 00:01:41]} {[%emt
00:00:02]} Ke6 {[%clk 00:00:18]} {[%emt 00:00:02]} 38. e4 {[%clk 00:01:27]}
{[%emt 00:00:17]} f5 {[%clk 00:00:18]} {[%emt 00:00:03]} 39. exf5+ Kxf5 {[%clk
00:00:18]} 40. f3 {[%clk 00:01:23]} {[%emt 00:00:05]} Kg5 {[%clk 00:00:16]}
{[%emt 00:00:04]} 41. Re2 {[%clk 00:01:20]} {[%emt 00:00:06]} Kxh5 {[%clk
00:00:16]} {[%emt 00:00:02]} 42. Rxe5+ {[%clk 00:01:20]} Kg6 {[%clk 00:00:16]}
43. g4 {[%clk 00:01:20]} {[%emt 00:00:02]} Kf6 {[%clk 00:00:16]} {[%emt
00:00:02]} 44. Rf5+ {[%clk 00:01:20]} {[%emt 00:00:01]} Kg6 {[%clk 00:00:16]}
{[%emt 00:00:01]} 45. Kg3 {[%clk 00:01:20]} Rc4 {[%clk 00:00:16]} {[%emt
00:00:03]} 46. Rd5 {[%clk 00:01:20]} {[%emt 00:00:01]} Ra4 {[%clk 00:00:16]}
{[%emt 00:00:01]} 47. Rf5 {[%clk 00:01:20]} {[%emt 00:00:01]} Rb4 {[%clk
00:00:16]} {[%emt 00:00:02]} 48. Rd5 {[%clk 00:01:20]} {[%emt 00:00:01]} Ra4
{[%clk 00:00:16]} {[%emt 00:00:01]} 49. Rf5 {[%clk 00:01:20]} Rb4 {[%clk
00:00:16]} 50. Rd5 {[%clk 00:01:20]} {[%emt 00:00:01]} Ra4 {[%clk 00:00:16]}
{[%emt 00:00:01]} 51. Rf5 {[%emt 00:00:02]} 1/2-1/2

[Event "13 Open de Quenza"]
[Site "Quenza, France"]
[Date "2024.07.07"]
[Round "6.4"]
[White "Dourerassou, Jonathan"]
[Black "Ciobanu, Camelia-Adriana"]
[Result "0-1"]
[TimeControl "5min+3s/move"]
[WhiteElo "2422"]
[BlackElo "2093"]

1. e4 {[%clk 00:05:03]} e6 {[%clk 00:05:02]} {[%emt 00:00:05]} 2. d4 {[%clk
00:05:03]} d5 {[%clk 00:05:02]} {[%emt 00:00:02]} 3. Nc3 {[%clk 00:05:03]}
{[%emt 00:00:01]} Nf6 {[%clk 00:05:00]} {[%emt 00:00:04]} 4. exd5 {[%clk
00:05:03]} {[%emt 00:00:01]} exd5 {[%clk 00:04:56]} {[%emt 00:00:08]} 5. Bd3
{[%clk 00:05:03]} {[%emt 00:00:01]} Nc6 {[%clk 00:04:54]} {[%emt 00:00:05]} 6.
Nf3 {[%clk 00:05:03]} {[%emt 00:00:01]} Bg4 {[%clk 00:04:53]} {[%emt 00:00:05]}
7. Be3 {[%clk 00:04:57]} {[%emt 00:00:10]} Qd7 {[%clk 00:04:50]} {[%emt
00:00:07]} 8. h3 {[%clk 00:04:57]} {[%emt 00:00:01]} Bh5 {[%clk 00:04:28]}
{[%emt 00:00:25]} 9. g4 {[%clk 00:04:45]} {[%emt 00:00:15]} Bg6 {[%clk
00:04:25]} {[%emt 00:00:06]} 10. Bb5 {[%clk 00:04:45]} {[%emt 00:00:01]} Bb4
{[%clk 00:04:02]} {[%emt 00:00:26]} 11. Ne5 {[%clk 00:04:45]} {[%emt 00:00:03]}
Qe6 {[%clk 00:04:02]} {[%emt 00:00:03]} 12. a3 {[%clk 00:03:50]} {[%emt
00:00:58]} Bxc3+ {[%clk 00:03:55]} {[%emt 00:00:10]} 13. bxc3 {[%clk 00:03:50]}
{[%emt 00:00:01]} Ne4 {[%clk 00:03:54]} {[%emt 00:00:04]} 14. Bxc6+ {[%clk
00:03:48]} {[%emt 00:00:05]} bxc6 {[%clk 00:03:53]} {[%emt 00:00:04]} 15. Nxg6
{[%clk 00:03:34]} {[%emt 00:00:16]} hxg6 {[%clk 00:03:53]} {[%emt 00:00:02]} 16.
Qd3 {[%clk 00:03:34]} {[%emt 00:00:02]} Qxg4 {[%clk 00:03:33]} {[%emt
00:00:23]} 17. hxg4 {[%clk 00:03:34]} {[%emt 00:00:01]} Rxh1+ {[%clk 00:03:33]}
{[%emt 00:00:01]} 18. Ke2 {[%clk 00:03:34]} {[%emt 00:00:01]} Rxa1 {[%clk
00:03:31]} {[%emt 00:00:05]} 19. f3 {[%clk 00:03:33]} {[%emt 00:00:03]} Nd6
{[%clk 00:03:28]} {[%emt 00:00:06]} 20. Qa6 {[%clk 00:03:33]} {[%emt 00:00:01]}
Kd7 {[%clk 00:03:28]} {[%emt 00:00:02]} 21. Bf4 {[%clk 00:03:33]} {[%emt
00:00:01]} Re8+ {[%clk 00:03:22]} {[%emt 00:00:09]} 22. Kf2 {[%clk 00:03:33]}
{[%emt 00:00:03]} Nb5 {[%clk 00:03:21]} {[%emt 00:00:04]} 23. a4 {[%clk
00:03:27]} {[%emt 00:00:09]} Nxc3 {[%clk 00:02:37]} {[%emt 00:00:48]} 24. Qxa7
{[%clk 00:03:27]} {[%emt 00:00:01]} Re2+ {[%clk 00:02:35]} {[%emt 00:00:04]} 25.
Kg3 {[%clk 00:03:27]} {[%emt 00:00:01]} Nb5 {[%clk 00:02:06]} {[%emt 00:00:32]}
26. c4 {[%clk 00:02:52]} {[%emt 00:00:38]} Nxa7 {[%clk 00:02:06]} {[%emt
00:00:02]} 0-1

[Event "13 Open de Quenza"]
[Site "Quenza, France"]
[Date "2024.07.07"]
[Round "6.5"]
[White "Roux, Baptiste"]
[Black "Maze, Sebastien"]
[Result "1/2-1/2"]
[TimeControl "5min+3s/move"]
[WhiteElo "2352"]
[BlackElo "2553"]

1. e4 {[%clk 00:05:03]} {[%emt 00:00:03]} c5 {[%clk 00:05:03]} {[%emt
00:00:01]} 2. Nf3 {[%clk 00:05:03]} {[%emt 00:00:01]} Nc6 {[%clk 00:05:03]} 3.
Bc4 {[%clk 00:05:00]} {[%emt 00:00:07]} e6 {[%clk 00:05:03]} {[%emt 00:00:04]}
4. O-O {[%clk 00:05:00]} {[%emt 00:00:02]} Nf6 {[%clk 00:04:57]} {[%emt
00:00:09]} 5. Re1 {[%clk 00:04:57]} {[%emt 00:00:06]} Qc7 {[%clk 00:04:48]}
{[%emt 00:00:12]} 6. c3 {[%clk 00:04:48]} {[%emt 00:00:12]} a6 {[%clk
00:04:15]} {[%emt 00:00:36]} 7. d4 {[%clk 00:04:48]} {[%emt 00:00:03]} b5
{[%clk 00:04:15]} {[%emt 00:00:02]} 8. Bb3 {[%clk 00:04:44]} {[%emt 00:00:06]}
Bb7 {[%clk 00:03:48]} {[%emt 00:00:30]} 9. e5 {[%clk 00:04:08]} {[%emt
00:00:40]} c4 {[%clk 00:03:34]} {[%emt 00:00:16]} 10. exf6 {[%clk 00:04:04]}
{[%emt 00:00:07]} cxb3 {[%clk 00:03:34]} {[%emt 00:00:01]} 11. fxg7 {[%clk
00:04:02]} {[%emt 00:00:04]} Bxg7 {[%clk 00:03:34]} {[%emt 00:00:01]} 12. axb3
{[%clk 00:03:54]} {[%emt 00:00:11]} Rg8 {[%clk 00:03:34]} {[%emt 00:00:02]} 13.
Qd3 {[%clk 00:03:51]} {[%emt 00:00:06]} Ne7 {[%clk 00:03:01]} {[%emt 00:00:36]}
14. Bg5 {[%clk 00:03:44]} {[%emt 00:00:10]} Ng6 {[%clk 00:02:14]} {[%emt
00:00:50]} 15. c4 {[%clk 00:03:27]} {[%emt 00:00:20]} h6 {[%clk 00:02:08]}
{[%emt 00:00:09]} 16. Bd2 {[%clk 00:03:12]} {[%emt 00:00:17]} Rc8 {[%clk
00:01:42]} {[%emt 00:00:29]} 17. Na3 {[%clk 00:02:25]} {[%emt 00:00:50]} Nf4
{[%clk 00:01:16]} {[%emt 00:00:29]} 18. Bxf4 {[%clk 00:02:25]} {[%emt
00:00:02]} Qxf4 {[%clk 00:01:16]} {[%emt 00:00:01]} 19. Qe3 {[%clk 00:02:16]}
{[%emt 00:00:12]} Qxf3 {[%clk 00:00:27]} {[%emt 00:00:52]} 20. gxf3 {[%clk
00:02:11]} {[%emt 00:00:08]} Bxd4+ {[%clk 00:00:27]} {[%emt 00:00:02]} 21. Kf1
{[%clk 00:02:09]} {[%emt 00:00:05]} Bxe3 {[%clk 00:00:27]} {[%emt 00:00:02]} 22.
Rxe3 {[%clk 00:02:07]} {[%emt 00:00:05]} Rg5 {[%clk 00:00:26]} {[%emt
00:00:04]} 23. Ke2 {[%clk 00:02:04]} {[%emt 00:00:06]} Bc6 {[%clk 00:00:17]}
{[%emt 00:00:13]} 24. Nc2 {[%clk 00:02:01]} {[%emt 00:00:05]} bxc4 {[%clk
00:00:17]} 25. bxc4 {[%clk 00:02:01]} a5 {[%clk 00:00:17]} {[%emt 00:00:02]} 26.
Nd4 {[%clk 00:02:00]} {[%emt 00:00:04]} Bb7 {[%clk 00:00:17]} {[%emt 00:00:03]}
27. b3 {[%clk 00:02:00]} {[%emt 00:00:02]} Ba6 {[%clk 00:00:13]} {[%emt
00:00:06]} 28. f4 {[%clk 00:01:49]} {[%emt 00:00:14]} Rh5 {[%clk 00:00:13]}
{[%emt 00:00:01]} 29. Re5 {[%clk 00:01:49]} Rxh2 {[%clk 00:00:13]} {[%emt
00:00:03]} 30. Raxa5 {[%clk 00:01:49]} {[%emt 00:00:01]} Bb7 {[%clk 00:00:13]}
{[%emt 00:00:01]} 31. Rh5 {[%clk 00:01:47]} {[%emt 00:00:05]} Rxh5 {[%clk
00:00:13]} {[%emt 00:00:03]} 32. Rxh5 {[%clk 00:01:47]} {[%emt 00:00:01]} d5
{[%clk 00:00:12]} {[%emt 00:00:04]} 33. Rxh6 {[%clk 00:01:25]} {[%emt
00:00:26]} Ke7 {[%clk 00:00:12]} {[%emt 00:00:02]} 34. cxd5 {[%clk 00:01:18]}
{[%emt 00:00:09]} Bxd5 {[%clk 00:00:12]} 35. Kd3 {[%clk 00:01:16]} {[%emt
00:00:05]} Rc1 {[%clk 00:00:12]} {[%emt 00:00:01]} 36. Rh3 {[%clk 00:01:09]}
{[%emt 00:00:10]} Rd1+ {[%clk 00:00:12]} {[%emt 00:00:01]} 37. Kc3 {[%clk
00:01:09]} {[%emt 00:00:02]} Rf1 {[%clk 00:00:12]} 38. Rh2 {[%clk 00:01:09]}
{[%emt 00:00:03]} Rc1+ {[%clk 00:00:12]} {[%emt 00:00:02]} 39. Kd2 {[%clk
00:01:09]} {[%emt 00:00:03]} Ra1 {[%clk 00:00:12]} {[%emt 00:00:02]} 40. Kc3
{[%clk 00:01:07]} {[%emt 00:00:05]} Rc1+ {[%clk 00:00:12]} {[%emt 00:00:01]} 41.
Kb4 {[%clk 00:01:07]} Rd1 {[%clk 00:00:12]} {[%emt 00:00:01]} 42. Kc3 {[%clk
00:00:25]} {[%emt 00:00:45]} Rc1+ {[%clk 00:00:12]} {[%emt 00:00:01]} 43. Kd2
{[%clk 00:00:23]} {[%emt 00:00:05]} Rb1 {[%clk 00:00:12]} 44. Rh3 {[%clk
00:00:22]} {[%emt 00:00:04]} Rf1 {[%clk 00:00:12]} {[%emt 00:00:03]} 45. Ke2
{[%clk 00:00:22]} {[%emt 00:00:03]} Rb1 {[%clk 00:00:12]} 46. Rc3 {[%clk
00:00:22]} Rb2+ {[%clk 00:00:12]} {[%emt 00:00:01]} 47. Ke3 {[%clk 00:00:22]}
Rb1 {[%clk 00:00:12]} 48. Nc2 {[%clk 00:00:19]} {[%emt 00:00:06]} Rxb3 {[%clk
00:00:08]} {[%emt 00:00:07]} 49. Rxb3 {[%clk 00:00:19]} {[%emt 00:00:01]} Bxb3
{[%clk 00:00:08]} 50. Nd4 {[%clk 00:00:19]} Bd5 {[%clk 00:00:08]} 51. Nc2
{[%clk 00:00:19]} {[%emt 00:00:03]} Kf6 {[%clk 00:00:08]} 52. Nd4 {[%clk
00:00:19]} Bc4 {[%clk 00:00:08]} {[%emt 00:00:01]} 53. Nf3 {[%clk 00:00:19]}
Bd5 {[%clk 00:00:08]} 54. Ne5 {[%clk 00:00:19]} {[%emt 00:00:02]} Bb3 {[%clk
00:00:08]} 55. Ng4+ {[%clk 00:00:19]} {[%emt 00:00:03]} Kf5 {[%clk 00:00:08]}
{[%emt 00:00:02]} 56. Ne5 {[%clk 00:00:19]} Kf6 {[%clk 00:00:08]} 57. Ng4+
{[%clk 00:00:19]} Kf5 {[%clk 00:00:08]} {[%emt 00:00:01]} 58. Ne5 {[%clk
00:00:19]} Kf6 59. Ke4 Kxe5+ 1/2-1/2

[Event "13 Open de Quenza"]
[Site "Quenza, France"]
[Date "2024.07.07"]
[Round "6.6"]
[White "Maurizzi, Marc Andria"]
[Black "Pieri, Pierre-Louis"]
[Result "1-0"]
[TimeControl "5min+3s/move"]
[WhiteElo "2620"]
[BlackElo "2190"]

1. d4 {[%clk 00:05:03]} {[%emt 00:02:08]} Nf6 {[%clk 00:05:03]} {[%emt
00:00:01]} 2. c4 {[%clk 00:05:03]} {[%emt 00:00:01]} e6 {[%clk 00:05:03]} 3.
Nf3 {[%clk 00:05:03]} {[%emt 00:00:01]} a6 {[%clk 00:05:03]} {[%emt 00:00:03]}
4. Nc3 {[%clk 00:04:57]} {[%emt 00:00:10]} d5 {[%clk 00:05:03]} {[%emt
00:00:01]} 5. cxd5 {[%clk 00:04:57]} {[%emt 00:00:02]} exd5 {[%clk 00:05:03]} 6.
Bg5 {[%clk 00:04:57]} Be7 {[%clk 00:05:03]} {[%emt 00:00:02]} 7. e3 {[%clk
00:04:57]} {[%emt 00:00:02]} O-O {[%clk 00:04:57]} {[%emt 00:00:09]} 8. Bd3
{[%clk 00:04:57]} Be6 {[%clk 00:04:55]} {[%emt 00:00:05]} 9. O-O {[%clk
00:04:57]} {[%emt 00:00:03]} Nbd7 {[%clk 00:04:51]} {[%emt 00:00:07]} 10. Rc1
{[%clk 00:04:57]} {[%emt 00:00:03]} Re8 {[%clk 00:04:06]} {[%emt 00:00:49]} 11.
h3 {[%clk 00:04:57]} {[%emt 00:00:01]} Nf8 {[%clk 00:04:06]} {[%emt 00:00:03]}
12. Bf4 {[%clk 00:04:57]} {[%emt 00:00:01]} Ng6 {[%clk 00:03:45]} {[%emt
00:00:23]} 13. Bh2 {[%clk 00:04:56]} {[%emt 00:00:04]} Bd6 {[%clk 00:03:45]}
{[%emt 00:00:03]} 14. Ne5 {[%clk 00:04:56]} {[%emt 00:00:02]} c6 {[%clk
00:03:28]} {[%emt 00:00:21]} 15. f4 {[%clk 00:04:55]} {[%emt 00:00:04]} Bc8
{[%clk 00:03:07]} {[%emt 00:00:24]} 16. Kh1 {[%clk 00:04:53]} {[%emt 00:00:04]}
Nd7 {[%clk 00:02:44]} {[%emt 00:00:27]} 17. Nxf7 {[%clk 00:04:43]} {[%emt
00:00:13]} Kxf7 {[%clk 00:02:40]} {[%emt 00:00:06]} 18. f5 {[%clk 00:04:43]}
{[%emt 00:00:01]} Nf4 {[%clk 00:02:22]} {[%emt 00:00:21]} 19. Bxf4 {[%clk
00:04:33]} {[%emt 00:00:13]} Bxf4 {[%clk 00:02:22]} {[%emt 00:00:03]} 20. Rxf4
{[%clk 00:04:28]} {[%emt 00:00:07]} Nf6 {[%clk 00:01:54]} {[%emt 00:00:32]} 21.
e4 dxe4 {[%clk 00:01:50]} 22. Nxe4 {[%clk 00:04:28]} Kg8 {[%clk 00:01:37]}
{[%emt 00:00:17]} 23. Nc5 {[%clk 00:04:09]} {[%emt 00:00:22]} Kh8 {[%clk
00:01:33]} {[%emt 00:00:07]} 24. Qf3 {[%clk 00:04:03]} {[%emt 00:00:09]} Qe7
{[%clk 00:01:14]} {[%emt 00:00:22]} 25. Qf2 {[%clk 00:03:56]} {[%emt 00:00:09]}
Qe3 {[%clk 00:01:05]} {[%emt 00:00:13]} 26. Qxe3 {[%clk 00:03:34]} {[%emt
00:00:25]} Rxe3 {[%clk 00:01:05]} 27. Rf3 {[%clk 00:03:20]} {[%emt 00:00:17]}
Rxf3 {[%clk 00:00:40]} 28. gxf3 {[%clk 00:03:20]} b6 {[%clk 00:00:40]} 29. Ne6
{[%clk 00:03:20]} {[%emt 00:00:02]} Bd7 {[%clk 00:00:28]} {[%emt 00:00:16]} 30.
Be4 {[%clk 00:03:20]} {[%emt 00:00:02]} g6 {[%clk 00:00:15]} {[%emt 00:00:15]}
31. Bxc6 {[%clk 00:03:18]} {[%emt 00:00:05]} Rc8 {[%clk 00:00:11]} {[%emt
00:00:08]} 32. d5 {[%clk 00:03:18]} {[%emt 00:00:01]} Nxd5 {[%clk 00:00:11]}
{[%emt 00:00:03]} 33. Nd4 {[%clk 00:03:18]} Bxf5 {[%clk 00:00:09]} {[%emt
00:00:05]} 34. Re1 {[%clk 00:03:17]} {[%emt 00:00:03]} Nb4 {[%clk 00:00:09]}
{[%emt 00:00:03]} 35. Nxf5 {[%clk 00:03:09]} {[%emt 00:00:11]} gxf5 {[%clk
00:00:09]} {[%emt 00:00:02]} 36. Bd7 {[%clk 00:03:09]} {[%emt 00:00:02]} Rc2
{[%clk 00:00:09]} {[%emt 00:00:02]} 37. Bxf5 {[%clk 00:03:09]} Rxb2 {[%clk
00:00:09]} {[%emt 00:00:02]} 38. Re7 {[%clk 00:03:09]} Nxa2 {[%clk 00:00:09]}
{[%emt 00:00:03]} 39. h4 {[%clk 00:03:09]} {[%emt 00:00:02]} h6 {[%clk
00:00:09]} {[%emt 00:00:02]} 40. Rh7+ {[%emt 00:00:02]} Kg8 41. Rxh6 {[%clk
00:03:09]} Nc3 {[%clk 00:00:09]} {[%emt 00:00:03]} 42. Rg6+ {[%clk 00:02:59]}
{[%emt 00:00:13]} Kf7 {[%clk 00:00:09]} {[%emt 00:00:02]} 43. h5 {[%clk
00:02:59]} {[%emt 00:00:02]} Ne2 {[%clk 00:00:05]} {[%emt 00:00:07]} 44. h6
{[%clk 00:02:56]} {[%emt 00:00:06]} Nf4 {[%clk 00:00:05]} 45. Rc6 {[%clk
00:02:56]} {[%emt 00:00:02]} Kg8 {[%clk 00:00:04]} {[%emt 00:00:05]} 46. h7+
{[%clk 00:02:56]} {[%emt 00:00:01]} Kg7 {[%clk 00:00:04]} 47. Rc7+ {[%clk
00:02:56]} 1-0